[Event "*** Titled Tuesday Blitz"]
[Site "Chess.com"]
[Date "2020.04.07"]
[Round "5"]
[White "skoularikii"]
[Black "BvsN"]
[Result "0-1"]
[WhiteElo "2471"]
[BlackElo "2312"]
[TimeControl "180+1"]
[EndTime "13:57:36 PDT"]
[Termination "BvsN won by resignation"]

1. e4 {[%clk 0:03:00.9]} 1... c5 {[%clk 0:02:59.8]} 2. Nf3 {[%clk 0:02:58]} 2...
e6 {[%clk 0:03:00.1]} 3. c3 {[%clk 0:02:57.3]} 3... Nf6 {[%clk 0:02:59.9]} 4.
Bd3 {[%clk 0:02:55.5]} 4... d5 {[%clk 0:02:59.5]} 5. e5 {[%clk 0:02:55.4]} 5...
Nfd7 {[%clk 0:02:58.5]} 6. Bc2 {[%clk 0:02:49]} 6... c4 {[%clk 0:02:58.9]} 7.
O-O {[%clk 0:02:43.1]} 7... Nc6 {[%clk 0:02:58.6]} 8. Re1 {[%clk 0:02:41.5]}
8... Qc7 {[%clk 0:02:59]} 9. Qe2 {[%clk 0:02:41.5]} 9... g5 {[%clk 0:02:51.2]}
10. Nxg5 {[%clk 0:02:38.8]} 10... Ndxe5 {[%clk 0:02:44]} 11. d4 {[%clk
0:02:31.3]} 11... cxd3 {[%clk 0:02:41.4]} 12. Bxd3 {[%clk 0:02:30.9]} 12... Bd6
{[%clk 0:02:33.4]} 13. Bc2 {[%clk 0:02:13.9]} 13... Bd7 {[%clk 0:02:27.2]} 14.
Qh5 {[%clk 0:02:03.8]} 14... O-O-O {[%clk 0:02:16.4]} 15. Na3 {[%clk 0:02:01.9]}
15... Bxa3 {[%clk 0:01:55.6]} 16. bxa3 {[%clk 0:02:01.7]} 16... f6 {[%clk
0:01:53.5]} 17. Nf7 {[%clk 0:01:51.1]} 17... Be8 {[%clk 0:01:42.1]} 18. Qh6
{[%clk 0:01:06.2]} 18... Qxf7 {[%clk 0:01:33.6]} 19. f4 {[%clk 0:01:06.4]} 19...
Nc4 {[%clk 0:01:27.7]} 20. Qh3 {[%clk 0:01:02.3]} 20... f5 {[%clk 0:01:21]} 21.
Be3 {[%clk 0:00:59.2]} 21... Rg8 {[%clk 0:01:13.5]} 22. Bf2 {[%clk 0:00:57.2]}
22... Qg6 {[%clk 0:01:06.2]} 23. Rxe6 {[%clk 0:00:56.2]} 23... Qf7 {[%clk
0:00:52.7]} 24. Rh6 {[%clk 0:00:51.6]} 24... Rg7 {[%clk 0:00:47]} 25. Re1 {[%clk
0:00:45]} 25... Bd7 {[%clk 0:00:46.7]} 26. Bh4 {[%clk 0:00:45.1]} 26... Re8
{[%clk 0:00:46.1]} 27. Rf1 {[%clk 0:00:35.5]} 27... Re3 {[%clk 0:00:41.3]} 28.
Bg3 {[%clk 0:00:32.3]} 28... Rxc3 {[%clk 0:00:33.1]} 29. Bb3 {[%clk 0:00:32.2]}
29... Nd4 {[%clk 0:00:23.4]} 30. Qh4 {[%clk 0:00:30.5]} 30... Nxb3 {[%clk
0:00:20]} 31. axb3 {[%clk 0:00:30.1]} 31... Rxb3 {[%clk 0:00:20.4]} 32. Rf6
{[%clk 0:00:30.1]} 32... Qe7 {[%clk 0:00:16.3]} 33. Qh6 {[%clk 0:00:28.9]} 33...
Re3 {[%clk 0:00:14.7]} 34. Bf2 {[%clk 0:00:27.3]} 34... Re2 {[%clk 0:00:14.2]}
35. h3 {[%clk 0:00:26.4]} 35... Rg8 {[%clk 0:00:12.9]} 36. Qh4 {[%clk
0:00:20.6]} 36... Qe4 {[%clk 0:00:11.8]} 37. g4 {[%clk 0:00:16.2]} 37... Ne3
{[%clk 0:00:11]} 38. Qg3 {[%clk 0:00:15.9]} 38... fxg4 {[%clk 0:00:08.3]} 39.
Bxe3 {[%clk 0:00:13.7]} 39... Qxe3+ {[%clk 0:00:06.2]} 40. Qxe3 {[%clk
0:00:13.5]} 40... Rxe3 {[%clk 0:00:06.7]} 41. Kf2 {[%clk 0:00:12.3]} 41... Rxh3
{[%clk 0:00:05]} 42. Rg1 {[%clk 0:00:12]} 42... Rh2+ {[%clk 0:00:04.5]} 43. Kg3
{[%clk 0:00:12]} 43... Rh3+ {[%clk 0:00:04.8]} 44. Kf2 {[%clk 0:00:12.1]} 44...
Rf3+ {[%clk 0:00:05.4]} 45. Ke2 {[%clk 0:00:12]} 45... Rxa3 {[%clk 0:00:06.1]}
46. Kd2 {[%clk 0:00:12.3]} 46... Re8 {[%clk 0:00:06.3]} 47. Kc2 {[%clk
0:00:11.9]} 47... Rf3 {[%clk 0:00:05.1]} 48. Kb2 {[%clk 0:00:12]} 48... Bc6
{[%clk 0:00:05.3]} 49. Ka1 {[%clk 0:00:12.4]} 49... Re2 {[%clk 0:00:05]} 50. f5
{[%clk 0:00:12.8]} 50... Rff2 {[%clk 0:00:04.2]} 51. Rf8+ {[%clk 0:00:13.4]}
51... Kc7 {[%clk 0:00:03.7]} 52. Rf7+ {[%clk 0:00:14.3]} 52... Kd6 {[%clk
0:00:04.3]} 53. f6 {[%clk 0:00:14.5]} 53... g3 {[%clk 0:00:04.3]} 54. Rg7 {[%clk
0:00:14.4]} 54... g2 {[%clk 0:00:04.8]} 55. R7xg2 {[%clk 0:00:13.6]} 55... Rxg2
{[%clk 0:00:05.2]} 56. Rf1 {[%clk 0:00:14.5]} 56... Rgf2 {[%clk 0:00:05.6]} 0-1

[Event "*** Titled Tuesday Blitz"]
[Site "Chess.com"]
[Date "2020.04.07"]
[Round "5"]
[White "nomessi"]
[Black "Kiborg95"]
[Result "0-1"]
[WhiteElo "2337"]
[BlackElo "2680"]
[TimeControl "180+1"]
[EndTime "13:57:39 PDT"]
[Termination "Kiborg95 won by resignation"]

1. e4 {[%clk 0:03:00.9]} 1... d6 {[%clk 0:02:56.4]} 2. d4 {[%clk 0:03:00.7]}
2... g6 {[%clk 0:02:56.5]} 3. Nc3 {[%clk 0:03:00.5]} 3... a6 {[%clk 0:02:57.1]}
4. Nf3 {[%clk 0:03:01]} 4... Nd7 {[%clk 0:02:56.4]} 5. Bc4 {[%clk 0:03:00.8]}
5... e6 {[%clk 0:02:56.2]} 6. Qe2 {[%clk 0:02:59.9]} 6... Ne7 {[%clk 0:02:55.6]}
7. Bb3 {[%clk 0:02:58.7]} 7... Bg7 {[%clk 0:02:55.8]} 8. h4 {[%clk 0:02:57.6]}
8... h5 {[%clk 0:02:55.4]} 9. Bg5 {[%clk 0:02:56.6]} 9... b5 {[%clk 0:02:53.7]}
10. O-O-O {[%clk 0:02:48.8]} 10... Bb7 {[%clk 0:02:53.5]} 11. a3 {[%clk
0:02:47.2]} 11... Qc8 {[%clk 0:02:41.4]} 12. Kb1 {[%clk 0:02:45.2]} 12... Nf6
{[%clk 0:02:12]} 13. e5 {[%clk 0:02:41.2]} 13... Nfd5 {[%clk 0:02:09.5]} 14.
Nxd5 {[%clk 0:02:40.8]} 14... Nxd5 {[%clk 0:02:06.3]} 15. exd6 {[%clk
0:02:39.8]} 15... cxd6 {[%clk 0:02:07.2]} 16. Nd2 {[%clk 0:02:34.8]} 16... Nb6
{[%clk 0:01:49]} 17. Ne4 {[%clk 0:02:25.3]} 17... Bxe4 {[%clk 0:01:49.2]} 18.
Qxe4 {[%clk 0:02:24.8]} 18... d5 {[%clk 0:01:49.7]} 19. Qf4 {[%clk 0:02:22.8]}
19... Nc4 {[%clk 0:01:46.1]} 20. Bf6 {[%clk 0:02:20.9]} 20... Bh6 {[%clk
0:01:37.7]} 21. Qf3 {[%clk 0:02:14.1]} 21... Rg8 {[%clk 0:01:17]} 22. Qe2 {[%clk
0:02:13.2]} 22... a5 {[%clk 0:01:11.1]} 23. a4 {[%clk 0:02:09.4]} 23... Qb7
{[%clk 0:00:53.7]} 24. Ka2 {[%clk 0:01:55.9]} 24... Rb8 {[%clk 0:00:48.4]} 25.
Be5 {[%clk 0:01:37.1]} 25... Rc8 {[%clk 0:00:44.1]} 26. c3 {[%clk 0:01:32.9]}
26... Qc6 {[%clk 0:00:43.6]} 27. axb5 {[%clk 0:01:22.5]} 27... Qxb5 {[%clk
0:00:44.5]} 28. Qc2 {[%clk 0:01:22.1]} 28... Nb6 {[%clk 0:00:40.7]} 29. Ka1
{[%clk 0:01:14.2]} 29... Ke7 {[%clk 0:00:38.4]} 30. Rhe1 {[%clk 0:01:10]} 30...
Rgd8 {[%clk 0:00:36.1]} 31. f3 {[%clk 0:01:06.5]} 31... a4 {[%clk 0:00:33]} 32.
Ba2 {[%clk 0:01:06.3]} 32... a3 {[%clk 0:00:32.1]} 33. bxa3 {[%clk 0:00:57.6]}
33... Qa5 {[%clk 0:00:27.9]} 34. Rd3 {[%clk 0:00:45.5]} 34... Rc6 {[%clk
0:00:28]} 35. Qb2 {[%clk 0:00:34.8]} 35... Rd7 {[%clk 0:00:19.6]} 36. Rb1 {[%clk
0:00:31.1]} 36... Na4 {[%clk 0:00:18.8]} 37. Qb4+ {[%clk 0:00:29.6]} 37... Qxb4
{[%clk 0:00:19.1]} 38. cxb4 {[%clk 0:00:28]} 38... Ra7 {[%clk 0:00:17.5]} 39.
Bb3 {[%clk 0:00:26.9]} 39... Nc3 {[%clk 0:00:16.6]} 40. Rxc3 {[%clk 0:00:25.9]}
40... Rxc3 {[%clk 0:00:16.5]} 41. Kb2 {[%clk 0:00:25.9]} 41... Rc8 {[%clk
0:00:14.3]} 42. a4 {[%clk 0:00:23.8]} 42... Bd2 {[%clk 0:00:14.2]} 43. b5 {[%clk
0:00:23.4]} 43... f6 {[%clk 0:00:13.8]} 44. Bg3 {[%clk 0:00:22.6]} 44... Bc3+
{[%clk 0:00:14.1]} 45. Ka3 {[%clk 0:00:21.7]} 45... Bxd4 {[%clk 0:00:14.8]} 46.
Be1 {[%clk 0:00:19.2]} 46... Bc5+ {[%clk 0:00:14.3]} 47. Bb4 {[%clk 0:00:19.1]}
47... Kd6 {[%clk 0:00:14.8]} 48. b6 {[%clk 0:00:17.6]} 48... Ra6 {[%clk
0:00:12.8]} 49. a5 {[%clk 0:00:11.8]} 49... Rxa5+ {[%clk 0:00:13.1]} 50. Ba4
{[%clk 0:00:11.6]} 50... Rca8 {[%clk 0:00:11.4]} 51. Bxc5+ {[%clk 0:00:09.5]}
51... Kxc5 {[%clk 0:00:12.3]} 52. b7 {[%clk 0:00:09.1]} 52... Rxa4+ {[%clk
0:00:12.4]} 53. Kb2 {[%clk 0:00:08.8]} 53... Rb8 {[%clk 0:00:12.4]} 0-1

[Event "*** Titled Tuesday Blitz"]
[Site "Chess.com"]
[Date "2020.04.07"]
[Round "5"]
[White "Gordima"]
[Black "GMBenjaminFinegold"]
[Result "1-0"]
[WhiteElo "2796"]
[BlackElo "2561"]
[TimeControl "180+1"]
[EndTime "13:57:40 PDT"]
[Termination "Gordima won by checkmate"]

1. c4 {[%clk 0:02:57.9]} 1... b6 {[%clk 0:02:53.9]} 2. Nc3 {[%clk 0:02:53.2]}
2... Bb7 {[%clk 0:02:54.2]} 3. e4 {[%clk 0:02:52.9]} 3... e6 {[%clk 0:02:53.5]}
4. g3 {[%clk 0:02:42]} 4... Bb4 {[%clk 0:02:50]} 5. Bg2 {[%clk 0:02:40.8]} 5...
f5 {[%clk 0:02:47.9]} 6. Nge2 {[%clk 0:02:32.5]} 6... Nf6 {[%clk 0:02:45.7]} 7.
d3 {[%clk 0:02:23.3]} 7... fxe4 {[%clk 0:02:45.2]} 8. O-O {[%clk 0:02:23.8]}
8... Nc6 {[%clk 0:02:41.8]} 9. dxe4 {[%clk 0:02:20.2]} 9... O-O {[%clk
0:02:41.6]} 10. h3 {[%clk 0:02:13.1]} 10... Rb8 {[%clk 0:02:31.3]} 11. Be3
{[%clk 0:02:09.5]} 11... Ne5 {[%clk 0:02:24.9]} 12. b3 {[%clk 0:02:08.3]} 12...
Bc5 {[%clk 0:02:21.9]} 13. Bxc5 {[%clk 0:02:01]} 13... bxc5 {[%clk 0:02:21.8]}
14. f4 {[%clk 0:02:01.7]} 14... Nc6 {[%clk 0:02:07.6]} 15. e5 {[%clk 0:01:58.8]}
15... Ne8 {[%clk 0:02:06.7]} 16. Qd2 {[%clk 0:01:43.2]} 16... Qe7 {[%clk
0:02:05.9]} 17. Rad1 {[%clk 0:01:37.4]} 17... d6 {[%clk 0:02:06]} 18. exd6
{[%clk 0:01:33]} 18... Nxd6 {[%clk 0:02:03.6]} 19. g4 {[%clk 0:01:21.1]} 19...
Rbd8 {[%clk 0:01:57.6]} 20. Qe3 {[%clk 0:01:20.8]} 20... Nd4 {[%clk 0:01:41.2]}
21. Nxd4 {[%clk 0:01:11.3]} 21... cxd4 {[%clk 0:01:39.5]} 22. Rxd4 {[%clk
0:01:06.9]} 22... Bxg2 {[%clk 0:01:39.8]} 23. Kxg2 {[%clk 0:01:06.8]} 23... Nf7
{[%clk 0:01:16.6]} 24. Re4 {[%clk 0:01:02.3]} 24... Qb4 {[%clk 0:01:08.2]} 25.
Rxe6 {[%clk 0:00:56.6]} 25... a5 {[%clk 0:01:06.8]} 26. Nd5 {[%clk 0:00:52.5]}
26... Qa3 {[%clk 0:01:06.6]} 27. Rf2 {[%clk 0:00:47]} 27... a4 {[%clk
0:01:05.4]} 28. f5 {[%clk 0:00:45.9]} 28... axb3 {[%clk 0:01:04.6]} 29. axb3
{[%clk 0:00:46.8]} 29... Qa8 {[%clk 0:00:52.6]} 30. Rf3 {[%clk 0:00:42.9]} 30...
Rxd5 {[%clk 0:00:52.1]} 31. cxd5 {[%clk 0:00:42.7]} 31... Qxd5 {[%clk 0:00:53]}
32. Kg3 {[%clk 0:00:35.4]} 32... h5 {[%clk 0:00:50]} 33. Qf4 {[%clk 0:00:26.5]}
33... Nd6 {[%clk 0:00:41.9]} 34. Rfe3 {[%clk 0:00:20.9]} 34... Qd1 {[%clk
0:00:39.3]} 35. Qf2 {[%clk 0:00:09.6]} 35... Qh1 {[%clk 0:00:35.2]} 36. Qg2
{[%clk 0:00:05.1]} 36... h4+ {[%clk 0:00:35.5]} 37. Kf3 {[%clk 0:00:05.7]} 37...
Qd1+ {[%clk 0:00:33.8]} 38. Qe2 {[%clk 0:00:05.6]} 38... Qh1+ {[%clk 0:00:33.6]}
39. Kf4 {[%clk 0:00:06.1]} 39... Qd5 {[%clk 0:00:29.9]} 40. R6e5 {[%clk
0:00:03.3]} 40... Qd4+ {[%clk 0:00:29.5]} 41. Kg5 {[%clk 0:00:03.5]} 41... Nf7+
{[%clk 0:00:27.9]} 42. Kxh4 {[%clk 0:00:04]} 42... Qf4 {[%clk 0:00:23.8]} 43.
R3e4 {[%clk 0:00:02]} 43... Qg5+ {[%clk 0:00:15.7]} 44. Kg3 {[%clk 0:00:02.3]}
44... Nxe5 {[%clk 0:00:15.7]} 45. Rxe5 {[%clk 0:00:03.2]} 45... Qc1 {[%clk
0:00:14.7]} 46. Qc4+ {[%clk 0:00:03.6]} 46... Qxc4 {[%clk 0:00:14.2]} 47. bxc4
{[%clk 0:00:04.5]} 47... Rd8 {[%clk 0:00:14.3]} 48. Rc5 {[%clk 0:00:04.4]} 48...
Rd7 {[%clk 0:00:14.4]} 49. Kf4 {[%clk 0:00:04.8]} 49... Kf7 {[%clk 0:00:14.8]}
50. Kg5 {[%clk 0:00:05.4]} 50... Kf8 {[%clk 0:00:13.1]} 51. h4 {[%clk 0:00:06]}
51... Kf7 {[%clk 0:00:13.6]} 52. h5 {[%clk 0:00:06.7]} 52... Kf8 {[%clk
0:00:13.8]} 53. Rc6 {[%clk 0:00:07.1]} 53... Kf7 {[%clk 0:00:13.8]} 54. h6
{[%clk 0:00:07.7]} 54... gxh6+ {[%clk 0:00:14.2]} 55. Kxh6 {[%clk 0:00:08.6]}
55... Rd4 {[%clk 0:00:14]} 56. Rxc7+ {[%clk 0:00:08.6]} 56... Kf6 {[%clk
0:00:14.3]} 57. Rc6+ {[%clk 0:00:09.1]} 57... Kf7 {[%clk 0:00:14.7]} 58. Kg5
{[%clk 0:00:09.5]} 58... Ke7 {[%clk 0:00:15.2]} 59. Rc7+ {[%clk 0:00:09.8]}
59... Kf8 {[%clk 0:00:15.1]} 60. Kf6 {[%clk 0:00:09.3]} 60... Ke8 {[%clk
0:00:14.7]} 61. g5 {[%clk 0:00:09.1]} 61... Rd6+ {[%clk 0:00:14.4]} 62. Ke5
{[%clk 0:00:09.3]} 62... Rd1 {[%clk 0:00:13.6]} 63. g6 {[%clk 0:00:09.8]} 63...
Kf8 {[%clk 0:00:12.8]} 64. Kf6 {[%clk 0:00:09.7]} 64... Ke8 {[%clk 0:00:12]} 65.
Rc8+ {[%clk 0:00:09.2]} 65... Kd7 {[%clk 0:00:11.9]} 66. Rc5 {[%clk 0:00:10.1]}
66... Rd6+ {[%clk 0:00:10.9]} 67. Kg7 {[%clk 0:00:09.6]} 67... Ra6 {[%clk
0:00:11.4]} 68. f6 {[%clk 0:00:09.3]} 68... Kd6 {[%clk 0:00:11.2]} 69. Rd5+
{[%clk 0:00:09.3]} 69... Ke6 {[%clk 0:00:11.5]} 70. f7 {[%clk 0:00:09.7]} 70...
Ra7 {[%clk 0:00:11.9]} 71. Kg8 {[%clk 0:00:09.5]} 71... Rb7 {[%clk 0:00:10.6]}
72. Rd1 {[%clk 0:00:07.4]} 72... Kf6 {[%clk 0:00:09.1]} 73. f8=Q+ {[%clk
0:00:07.2]} 73... Kxg6 {[%clk 0:00:09.5]} 74. Rg1+ {[%clk 0:00:07.5]} 74... Kh5
{[%clk 0:00:09.3]} 75. Qf5+ {[%clk 0:00:07.9]} 75... Kh6 {[%clk 0:00:09.9]} 76.
Qg6# {[%clk 0:00:08.1]} 1-0

[Event "*** Titled Tuesday Blitz"]
[Site "Chess.com"]
[Date "2020.04.07"]
[Round "5"]
[White "Fandorine"]
[Black "Batica1984"]
[Result "1-0"]
[WhiteElo "2981"]
[BlackElo "2841"]
[TimeControl "180+1"]
[EndTime "13:57:44 PDT"]
[Termination "Fandorine won by resignation"]

1. e4 {[%clk 0:03:00.9]} 1... c5 {[%clk 0:02:58.3]} 2. Nf3 {[%clk 0:02:59.6]}
2... e6 {[%clk 0:02:54]} 3. g3 {[%clk 0:02:57.2]} 3... Nc6 {[%clk 0:02:47.5]} 4.
Bg2 {[%clk 0:02:56.4]} 4... Nf6 {[%clk 0:02:47.7]} 5. Qe2 {[%clk 0:02:55.3]}
5... e5 {[%clk 0:02:47.6]} 6. O-O {[%clk 0:02:55.2]} 6... Be7 {[%clk 0:02:47.8]}
7. Nc3 {[%clk 0:02:55.6]} 7... O-O {[%clk 0:02:47.7]} 8. Nd5 {[%clk 0:02:55.6]}
8... d6 {[%clk 0:02:46.6]} 9. c3 {[%clk 0:02:54]} 9... Re8 {[%clk 0:02:40.1]}
10. d3 {[%clk 0:02:48.2]} 10... h6 {[%clk 0:02:39.1]} 11. a4 {[%clk 0:02:38.1]}
11... Bf8 {[%clk 0:02:36.7]} 12. Nd2 {[%clk 0:02:35.6]} 12... Nxd5 {[%clk
0:02:14.2]} 13. exd5 {[%clk 0:02:36.5]} 13... Ne7 {[%clk 0:02:14.2]} 14. a5
{[%clk 0:02:35.8]} 14... g6 {[%clk 0:02:05.2]} 15. Nc4 {[%clk 0:02:33.1]} 15...
Bg7 {[%clk 0:02:04.7]} 16. Qc2 {[%clk 0:02:21.3]} 16... Nf5 {[%clk 0:01:49.1]}
17. Bd2 {[%clk 0:01:51.5]} 17... h5 {[%clk 0:01:38.5]} 18. Rfb1 {[%clk
0:01:45.8]} 18... h4 {[%clk 0:01:36.7]} 19. b4 {[%clk 0:01:45.8]} 19... cxb4
{[%clk 0:01:35.4]} 20. Rxb4 {[%clk 0:01:46.7]} 20... Rb8 {[%clk 0:01:32.6]} 21.
a6 {[%clk 0:01:21.6]} 21... Qc7 {[%clk 0:01:18.8]} 22. axb7 {[%clk 0:01:16]}
22... Rxb7 {[%clk 0:01:17.8]} 23. Rxb7 {[%clk 0:01:08.9]} 23... Bxb7 {[%clk
0:01:04.7]} 24. Rxa7 {[%clk 0:01:08.5]} 24... Ra8 {[%clk 0:00:44.8]} 25. Rxa8+
{[%clk 0:00:35.4]} 25... Bxa8 {[%clk 0:00:45.7]} 26. Qa4 {[%clk 0:00:32]} 26...
Qb8 {[%clk 0:00:45.4]} 27. Qb4 {[%clk 0:00:26.3]} 27... Qa7 {[%clk 0:00:43]} 28.
Qa5 {[%clk 0:00:22.6]} 28... Qb8 {[%clk 0:00:40.6]} 29. Qb6 {[%clk 0:00:18.6]}
29... Qf8 {[%clk 0:00:33.8]} 30. g4 {[%clk 0:00:18.2]} 30... h3 {[%clk
0:00:33.3]} 31. gxf5 {[%clk 0:00:16]} 31... hxg2 {[%clk 0:00:33.1]} 32. Qxd6
{[%clk 0:00:16.5]} 32... Qxd6 {[%clk 0:00:30.4]} 33. Nxd6 {[%clk 0:00:17.4]}
33... Bxd5 {[%clk 0:00:30.6]} 34. c4 {[%clk 0:00:15.6]} 34... Bf3 {[%clk
0:00:30.2]} 35. fxg6 {[%clk 0:00:13.3]} 35... fxg6 {[%clk 0:00:31.1]} 36. c5
{[%clk 0:00:10.9]} 36... Kf8 {[%clk 0:00:24.9]} 37. Ne4 {[%clk 0:00:09.3]} 37...
Ke7 {[%clk 0:00:24.2]} 38. c6 {[%clk 0:00:05.7]} 38... Bxe4 {[%clk 0:00:15.3]}
39. dxe4 {[%clk 0:00:06.6]} 39... Kd6 {[%clk 0:00:15.7]} 40. Kxg2 {[%clk
0:00:06.6]} 40... Kxc6 {[%clk 0:00:16.2]} 41. Kf3 {[%clk 0:00:07.3]} 41... Kd6
{[%clk 0:00:16.5]} 42. Kg4 {[%clk 0:00:07.9]} 42... Ke6 {[%clk 0:00:16.9]} 43.
Bc3 {[%clk 0:00:08.4]} 43... Bf8 {[%clk 0:00:13.5]} 44. h3 {[%clk 0:00:07.5]}
44... Bc5 {[%clk 0:00:12.2]} 45. Kg5 {[%clk 0:00:04.5]} 45... Kf7 {[%clk
0:00:09.5]} 46. f3 {[%clk 0:00:04.5]} 46... Be3+ {[%clk 0:00:09.5]} 47. Kg4
{[%clk 0:00:04.5]} 47... Bf4 {[%clk 0:00:09.6]} 48. Be1 {[%clk 0:00:05]} 48...
Kf6 {[%clk 0:00:08.9]} 49. Bh4+ {[%clk 0:00:04.6]} 49... Ke6 {[%clk 0:00:08]}
50. Bg3 {[%clk 0:00:04.2]} 50... Be3 {[%clk 0:00:08.4]} 51. Bh4 {[%clk
0:00:03.6]} 51... Bf4 {[%clk 0:00:08.5]} 52. Bg5 {[%clk 0:00:03.7]} 52... Bh2
{[%clk 0:00:08.8]} 53. Be3 {[%clk 0:00:04.1]} 53... Kf6 {[%clk 0:00:07.8]} 54.
h4 {[%clk 0:00:04.5]} 54... Ke6 {[%clk 0:00:07.6]} 55. Kh3 {[%clk 0:00:05]}
55... Bf4 {[%clk 0:00:07.8]} 56. Bxf4 {[%clk 0:00:05.4]} 56... exf4 {[%clk
0:00:08.2]} 57. Kg4 {[%clk 0:00:06.2]} 57... Ke5 {[%clk 0:00:08.7]} 58. Kg5
{[%clk 0:00:06.8]} 58... Kd4 {[%clk 0:00:09]} 59. Kxf4 {[%clk 0:00:07.4]} 1-0

[Event "*** Titled Tuesday Blitz"]
[Site "Chess.com"]
[Date "2020.04.07"]
[Round "5"]
[White "Mikhail_Golubev"]
[Black "AllStarShark"]
[Result "1-0"]
[WhiteElo "2516"]
[BlackElo "2330"]
[TimeControl "180+1"]
[EndTime "13:57:46 PDT"]
[Termination "Mikhail_Golubev won by checkmate"]

1. e4 {[%clk 0:02:58.1]} 1... c6 {[%clk 0:02:51.9]} 2. d4 {[%clk 0:02:57.6]}
2... d5 {[%clk 0:02:52.8]} 3. Nc3 {[%clk 0:02:57]} 3... dxe4 {[%clk 0:02:52.4]}
4. Nxe4 {[%clk 0:02:57]} 4... Nf6 {[%clk 0:02:53]} 5. Nxf6+ {[%clk 0:02:56.7]}
5... exf6 {[%clk 0:02:53.9]} 6. c3 {[%clk 0:02:57.1]} 6... Bd6 {[%clk
0:02:53.8]} 7. Bd3 {[%clk 0:02:57.5]} 7... O-O {[%clk 0:02:54.1]} 8. Ne2 {[%clk
0:02:57.9]} 8... Re8 {[%clk 0:02:54.2]} 9. Qc2 {[%clk 0:02:58.1]} 9... h5 {[%clk
0:02:54.3]} 10. Be3 {[%clk 0:02:58.2]} 10... Nd7 {[%clk 0:02:54.2]} 11. O-O-O
{[%clk 0:02:57.5]} 11... Nf8 {[%clk 0:02:54.4]} 12. Kb1 {[%clk 0:02:45.4]} 12...
Be6 {[%clk 0:02:49.8]} 13. c4 {[%clk 0:02:42.6]} 13... b5 {[%clk 0:02:46.1]} 14.
d5 {[%clk 0:02:18]} 14... cxd5 {[%clk 0:02:27.3]} 15. cxd5 {[%clk 0:02:11.6]}
15... Bd7 {[%clk 0:02:17.1]} 16. Nd4 {[%clk 0:01:59.7]} 16... Rc8 {[%clk
0:02:00.6]} 17. Nc6 {[%clk 0:01:59.5]} 17... Bxc6 {[%clk 0:01:44.8]} 18. dxc6
{[%clk 0:01:57.8]} 18... a6 {[%clk 0:01:34.6]} 19. Rc1 {[%clk 0:01:53.9]} 19...
Qc7 {[%clk 0:01:31.2]} 20. Rhd1 {[%clk 0:01:50.6]} 20... Ne6 {[%clk 0:01:16.3]}
21. Bh7+ {[%clk 0:01:39.8]} 21... Kh8 {[%clk 0:01:14]} 22. Qf5 {[%clk
0:01:28.3]} 22... Nf8 {[%clk 0:00:49.6]} 23. Qd5 {[%clk 0:00:47.6]} 23... Be5
{[%clk 0:00:20.6]} 24. Bf5 {[%clk 0:00:44.4]} 24... Rcd8 {[%clk 0:00:19.9]} 25.
Bd7 {[%clk 0:00:44]} 25... Re7 {[%clk 0:00:14.7]} 26. Bc5 {[%clk 0:00:43.8]}
26... Rdxd7 {[%clk 0:00:09.5]} 27. cxd7 {[%clk 0:00:41.7]} 27... Rxd7 {[%clk
0:00:09.6]} 28. Qf3 {[%clk 0:00:34.7]} 28... Rxd1 {[%clk 0:00:09]} 29. Qxh5+
{[%clk 0:00:33.9]} 29... Kg8 {[%clk 0:00:08.3]} 30. Qxd1 {[%clk 0:00:34.4]}
30... Ne6 {[%clk 0:00:07.4]} 31. Bd4 {[%clk 0:00:24.8]} 31... Qb7 {[%clk
0:00:07.7]} 32. Bxe5 {[%clk 0:00:24.2]} 32... fxe5 {[%clk 0:00:08.6]} 33. Qd3
{[%clk 0:00:19.4]} 33... e4 {[%clk 0:00:08]} 34. Qd6 {[%clk 0:00:17.3]} 34... e3
{[%clk 0:00:07]} 35. fxe3 {[%clk 0:00:15.4]} 35... Qxg2 {[%clk 0:00:07.4]} 36.
Qxa6 {[%clk 0:00:13.1]} 36... Qe4+ {[%clk 0:00:07.3]} 37. Ka1 {[%clk 0:00:12.3]}
37... Qxe3 {[%clk 0:00:07.8]} 38. Qc8+ {[%clk 0:00:11.8]} 38... Kh7 {[%clk
0:00:07.5]} 39. Qc2+ {[%clk 0:00:12]} 39... g6 {[%clk 0:00:06.9]} 40. Rf1 {[%clk
0:00:12.1]} 40... Kg8 {[%clk 0:00:05.5]} 41. Qc8+ {[%clk 0:00:11.5]} 41... Nf8
{[%clk 0:00:03.6]} 42. Qc2 {[%clk 0:00:08.6]} 42... Qh3 {[%clk 0:00:02.5]} 43.
Qf2 {[%clk 0:00:08]} 43... Qe6 {[%clk 0:00:02]} 44. Qf6 {[%clk 0:00:06.7]} 44...
Qxf6 {[%clk 0:00:01.6]} 45. Rxf6 {[%clk 0:00:05.4]} 45... Ne6 {[%clk 0:00:02.5]}
46. a3 {[%clk 0:00:04.6]} 46... Kg7 {[%clk 0:00:02.6]} 47. Rf3 {[%clk
0:00:04.3]} 47... Nd4 {[%clk 0:00:02.5]} 48. Rd3 {[%clk 0:00:03.7]} 48... Nb3+
{[%clk 0:00:02.2]} 49. Rxb3 {[%clk 0:00:03.1]} 49... Kf6 {[%clk 0:00:01.5]} 50.
Rxb5 {[%clk 0:00:03.2]} 50... g5 {[%clk 0:00:02.4]} 51. a4 {[%clk 0:00:03.4]}
51... g4 {[%clk 0:00:03.3]} 52. a5 {[%clk 0:00:03.7]} 52... Kg6 {[%clk
0:00:04.2]} 53. a6 {[%clk 0:00:03]} 53... f5 {[%clk 0:00:05.1]} 54. a7 {[%clk
0:00:02.5]} 54... f4 {[%clk 0:00:06]} 55. a8=Q {[%clk 0:00:02.9]} 55... f3
{[%clk 0:00:06.5]} 56. Qg8+ {[%clk 0:00:02.7]} 56... Kf6 {[%clk 0:00:06.2]} 57.
Qxg4 {[%clk 0:00:03.2]} 57... f2 {[%clk 0:00:05.7]} 58. Qf3+ {[%clk 0:00:03.8]}
58... Ke6 {[%clk 0:00:06.6]} 59. Qxf2 {[%clk 0:00:04.3]} 59... Kd6 {[%clk
0:00:07.4]} 60. Qc5+ {[%clk 0:00:04.5]} 60... Kd7 {[%clk 0:00:07.4]} 61. Rb6
{[%clk 0:00:05]} 61... Kd8 {[%clk 0:00:07.4]} 62. Qc6 {[%clk 0:00:05.2]} 62...
Ke7 {[%clk 0:00:07.4]} 63. Rb7+ {[%clk 0:00:05.6]} 63... Kd8 {[%clk 0:00:07.6]}
64. Qc7+ {[%clk 0:00:06]} 64... Ke8 {[%clk 0:00:07.7]} 65. Qc8# {[%clk
0:00:06.6]} 1-0